{"text_format":"2","workbook":"xlsx","n_sheets":1,"sheets":["Sheet1"],"not_rendered":{"charts":0,"images":1,"macros":0,"external_links":0,"defined_names":0,"comments":0,"pivot_tables":0},"unopened":[],"bounds":{"document_bytes":16777216,"sheet_cells":100000,"run_cost":"one","rows_first":2000,"rows_last":500,"rows_between":2000,"halvings":0,"cell_chars":16384,"cell_head_chars":4096},"cells_cut":0,"cells_raw":0,"read":"whole","date_system":"1900"}

{"sheet":"Sheet1","index":0,"n_rows":43,"n_cols":11,"rows_kept":43,"cut":false,"hidden":false,"merged":[[4,7,4,10],[5,7,5,10],[28,9,28,10],[34,9,34,10],[27,12,27,13],[6,7,6,10],[7,7,7,10],[6,1,6,3],[2,1,2,3],[3,1,3,3],[4,1,4,3],[5,1,5,3],[2,7,2,10],[3,7,3,10],[7,1,7,3]]}
["SOFTWARE ORDER FORM",{"$nulls":6},"Civiltech Software"]
[null,"Email: sales@civiltech.com, Fax 425-998-0145, Phone 1-888-812-9525"]
["Company:",{"$nulls":5},"Buyer's Name: "]
["Street1:",{"$nulls":5},"User Name:"]
["Street2:",{"$nulls":5},"Telephone:"]
["City: ",{"$nulls":5},"Fax:"]
["State, Zip code",{"$nulls":5},"Email:"]
["Country:",{"$nulls":5},"Date:"]
[]
["Pay with your","1. Go online purchase - www.civiltech.com, or",{"$nulls":5},"Email: ","sales@civiltech.com"]
["Credit card:","2. Fill this form email or fax to us. We will email you an electronic invoice which you can pay online without log in.",{"$nulls":6},"Fax: 425-998-0145"]
["Pay with a Check:","If paying by check, make check payable to Civiltech Software in US funds. Foreign check must be drawn in U.S. bank "]
[null,"Mail Check with Order Form to:   650 Castro St, Suite 120-267, Mountain View, CA 94041  "]
[]
["SHORING Suite",null,"Unit Price","Quantity","Cost",null,"LIQUEFYPRO ",null,"Unit Price","Quantity","Cost"]
["Version 8 with USB key",null,1650.0,null,{"$f":"IF(D16>0,(D16*0.8+0.2)*C16,\"\")","v":""},null,"Version 5 with USB key",null,900.0,null,{"$f":"IF(J16>0,(J16*0.8+0.2)*I16,\"\")","v":""}]
["Upgrade from V.7 to V.8 with USB key",null,480.0,null,"",null,"Upgrade from V.4 to V.5 with USB key",null,200.0,null,""]
["Upgrade from V.6 to V.8 with USB key  ",null,680.0,null,"",null,"Upgrade from V.3 to V.5 with USB key ",null,300.0,null,""]
["Upgrade from V.5 and under to V.8 with USB Key",null,800.0,null,"",null,"Upgrade from V.2 to V.5 with USB key",null,450.0,null,""]
[]
[{"$nulls":6},"UPRES (TUNNEL)",null,"Unit Price","Quantity","Cost"]
[{"$nulls":6},"Code Version 3 ( No USB Version)",null,345.0,null,{"$f":"IF(J22>0,(J22*0.8+0.2)*I22,\"\")","v":""}]
[{"$nulls":6},"Upgrade to V.3",null,150.0,null,""]
[]
["ALLPILE ",null,"Unit Price","Quantity","Cost",null,"SPECTRA ",null,"Unit Price","Quantity","Cost"]
["Version 7 with USB key",null,950.0,null,{"$f":"IF(D26>0,(D26*0.8+0.2)*C26,\"\")","v":""},null,"MS Excel Version ( No USB Version)",null,100.0,null,{"$f":"IF(J26>0,(J26*0.8+0.2)*I26,\"\")","v":""}]
["Upgrade from V.6 to V.7 with USB key",null,250.0,null,""]
["Upgrade from V.5 to V.7 with USB key",null,350.0,null,"",null,"Total Orders:"]
["Upgrade from V.3 and V.4 to V7 with USB key ",null,450.0,null,"",null,"SUBTOTAL:",null,null,{"$f":"SUM(E16:E23)+SUM(E26:E30)+SUM(E33:E35)+SUM(K16:K19)+SUM(K22:K23)+K26","v":0}]
["Upgrade from V.2 to V.7 with USB key",null,550.0,null,"",null,"US  - Regular Shipping & Handling",null,10.0,null,{"$f":"IF(J30>0,(J30*0.8+0.2)*I30,\"\")","v":""}]
[{"$nulls":6},"US - Express, FedEx or Download",null,25.0,null,""]
["SUPERLOG ",null,"Unit Price","Quantity","Cost",null,"International - Shipping & Handling ",null,75.0,null,""]
["Version 4 with USB key",null,600.0,null,{"$f":"IF(D33>0,(D33*0.8+0.2)*C33,\"\")","v":""},null,"Tax (7.25% if shipping to California)",null,null,null,""]
["Upgrade from V2 or V3 ",null,200.0,null,""]
[" ",null," ",null,null,null,"Total Charge:",null,null,{"$f":"SUM(K30:K34)+J29","v":0}]
["Policies:"]
[" "]
["USB keys contain one copy (license) of software per key"]
["2nd copy (license) is 80% of full price if you purchase them at the same time. If you buy a 2nd copy at a different time, you need to pay the full price."]
["All software includes one year of free technical support."]
["If the USB key is damaged, the user needs to send the damaged key back for a replacement key. "]
["The cost of replacing a key is free within 6 months of purchase. After 6 months, the replacement key is $100. "]
["If the USB key is lost, Civiltech Software will not be held responsible. If the user has business insurance, the insurance may cover the loss of the key."]